[Event "*** SCC Grand Prix: Titled Tuesday Blitz"]
[Site "Chess.com"]
[Date "2020.08.11"]
[Round "6"]
[White "sergiochess83"]
[Black "QuintilianoR"]
[Result "1-0"]
[WhiteElo "2820"]
[BlackElo "2644"]
[TimeControl "180+1"]
[EndTime "11:08:20 PDT"]
[Termination "sergiochess83 won by resignation"]

1. e4 {[%clk 0:01:48]} 1... e5 {[%clk 0:02:59]} 2. Nf3 {[%clk 0:01:47.4]} 2...
Nc6 {[%clk 0:02:58.5]} 3. Bb5 {[%clk 0:01:48]} 3... a6 {[%clk 0:02:58.3]} 4. Ba4
{[%clk 0:01:48.3]} 4... d6 {[%clk 0:02:58.1]} 5. O-O {[%clk 0:01:46.8]} 5... Bd7
{[%clk 0:02:55.9]} 6. c4 {[%clk 0:01:44.7]} 6... g6 {[%clk 0:02:53.9]} 7. Nc3
{[%clk 0:01:45]} 7... Bg7 {[%clk 0:02:53.9]} 8. Bxc6 {[%clk 0:01:45.3]} 8...
Bxc6 {[%clk 0:02:34.5]} 9. d4 {[%clk 0:01:46.2]} 9... Ne7 {[%clk 0:02:34.2]} 10.
Be3 {[%clk 0:01:41.3]} 10... O-O {[%clk 0:02:33]} 11. Re1 {[%clk 0:01:41.8]}
11... h6 {[%clk 0:02:26.6]} 12. Qd2 {[%clk 0:01:41.9]} 12... Kh7 {[%clk
0:02:26.4]} 13. Rad1 {[%clk 0:01:35.8]} 13... f5 {[%clk 0:02:09.4]} 14. dxe5
{[%clk 0:01:32]} 14... dxe5 {[%clk 0:01:48.5]} 15. Bc5 {[%clk 0:01:31.9]} 15...
Qe8 {[%clk 0:01:40]} 16. Nd5 {[%clk 0:01:30.5]} 16... Bxd5 {[%clk 0:01:39.4]}
17. exd5 {[%clk 0:01:26.8]} 17... e4 {[%clk 0:01:18.9]} 18. Nd4 {[%clk 0:01:27]}
18... Rf7 {[%clk 0:01:17.8]} 19. Ne6 {[%clk 0:01:18.9]} 19... Nc8 {[%clk
0:01:14.9]} 20. f3 {[%clk 0:01:14.3]} 20... Nd6 {[%clk 0:00:54.7]} 21. Bxd6
{[%clk 0:00:55]} 21... cxd6 {[%clk 0:00:55.6]} 22. fxe4 {[%clk 0:00:55.5]} 22...
f4 {[%clk 0:00:55.6]} 23. Nxg7 {[%clk 0:00:48.6]} 23... Kxg7 {[%clk 0:00:53.1]}
24. Qd4+ {[%clk 0:00:48.7]} 24... Qe5 {[%clk 0:00:52]} 25. Qxe5+ {[%clk
0:00:49]} 25... dxe5 {[%clk 0:00:52.9]} 26. c5 {[%clk 0:00:49]} 26... Rc8 {[%clk
0:00:51.7]} 27. b4 {[%clk 0:00:48.5]} 27... g5 {[%clk 0:00:51.7]} 28. d6 {[%clk
0:00:47.6]} 28... Rd7 {[%clk 0:00:51.5]} 29. Rd5 {[%clk 0:00:44.7]} 29... Kf6
{[%clk 0:00:51]} 30. a4 {[%clk 0:00:38.4]} 30... Ke6 {[%clk 0:00:50.9]} 31. Red1
{[%clk 0:00:38.7]} 31... Rf8 {[%clk 0:00:49.1]} 32. b5 {[%clk 0:00:31.4]} 32...
axb5 {[%clk 0:00:49.2]} 33. axb5 {[%clk 0:00:32.3]} 33... Rc8 {[%clk 0:00:49.6]}
34. g4 {[%clk 0:00:26.8]} 34... Kf7 {[%clk 0:00:38.7]} 35. Ra1 {[%clk
0:00:25.1]} 35... Ke6 {[%clk 0:00:35.7]} 36. Ra7 {[%clk 0:00:24.9]} 36... Rf8
{[%clk 0:00:35.2]} 37. Kf2 {[%clk 0:00:24.3]} 37... Rh8 {[%clk 0:00:35]} 38. Ra3
{[%clk 0:00:16.3]} 38... h5 {[%clk 0:00:33.7]} 39. Rh3 {[%clk 0:00:16.3]} 39...
h4 {[%clk 0:00:32]} 40. Ra3 {[%clk 0:00:15.3]} 40... Rc8 {[%clk 0:00:31]} 41.
Ra7 {[%clk 0:00:13.4]} 41... Rh8 {[%clk 0:00:30.4]} 42. h3 {[%clk 0:00:13.7]}
42... Rc8 {[%clk 0:00:29.7]} 43. Kf3 {[%clk 0:00:13.9]} 43... Rh8 {[%clk
0:00:27.6]} 44. Ra3 {[%clk 0:00:12.4]} 44... Rc8 {[%clk 0:00:27.2]} 45. Ke2
{[%clk 0:00:10.3]} 45... b6 {[%clk 0:00:24.7]} 46. c6 {[%clk 0:00:07.1]} 46...
Rxd6 {[%clk 0:00:24.4]} 47. Rxd6+ {[%clk 0:00:08]} 47... Kxd6 {[%clk 0:00:25]}
48. Rd3+ {[%clk 0:00:07.9]} 48... Ke6 {[%clk 0:00:25]} 49. Rd7 {[%clk 0:00:06]}
49... Ra8 {[%clk 0:00:24.9]} 50. Rb7 {[%clk 0:00:05.8]} 50... Ra2+ {[%clk
0:00:24.6]} 51. Kd1 {[%clk 0:00:04.5]} 51... f3 {[%clk 0:00:24.8]} 52. Ke1
{[%clk 0:00:04.1]} 52... Re2+ {[%clk 0:00:18.4]} 53. Kf1 {[%clk 0:00:04.4]}
53... Rxe4 {[%clk 0:00:18.5]} 54. Rxb6 {[%clk 0:00:03.5]} 54... Rb4 {[%clk
0:00:18.4]} 55. c7+ {[%clk 0:00:03.2]} 55... Kd7 {[%clk 0:00:18.5]} 56. Rc6
{[%clk 0:00:03.4]} 56... Kc8 {[%clk 0:00:18.7]} 57. b6 {[%clk 0:00:04]} 57... e4
{[%clk 0:00:18.9]} 58. Re6 {[%clk 0:00:04.3]} 58... Rb1+ {[%clk 0:00:16.1]} 59.
Kf2 {[%clk 0:00:04.8]} 59... Rb2+ {[%clk 0:00:16.4]} 60. Kf1 {[%clk 0:00:05.3]}
60... Rb1+ {[%clk 0:00:16.5]} 61. Kf2 {[%clk 0:00:05.8]} 61... Rb2+ {[%clk
0:00:17]} 62. Ke3 {[%clk 0:00:06.3]} 62... Re2+ {[%clk 0:00:17.3]} 63. Kd4
{[%clk 0:00:06.1]} 63... Rc2 {[%clk 0:00:17.8]} 64. Re8+ {[%clk 0:00:04.9]}
64... Kb7 {[%clk 0:00:17.3]} 65. Rb8+ {[%clk 0:00:05]} 65... Ka6 {[%clk
0:00:17]} 66. c8=Q+ {[%clk 0:00:05.9]} 66... Rxc8 {[%clk 0:00:17]} 67. Rxc8
{[%clk 0:00:06.8]} 67... f2 {[%clk 0:00:17.9]} 68. Rf8 {[%clk 0:00:06.7]} 68...
e3 {[%clk 0:00:18.8]} 69. Kxe3 {[%clk 0:00:07]} 1-0

[Event "*** SCC Grand Prix: Titled Tuesday Blitz"]
[Site "Chess.com"]
[Date "2020.08.11"]
[Round "6"]
[White "AldokhinIvan"]
[Black "ClydeHillKid"]
[Result "1-0"]
[WhiteElo "2537"]
[BlackElo "2326"]
[TimeControl "180+1"]
[EndTime "11:08:21 PDT"]
[Termination "AldokhinIvan won by checkmate"]

1. e4 {[%clk 0:02:34.7]} 1... e6 {[%clk 0:02:59.3]} 2. d4 {[%clk 0:02:33.2]}
2... d5 {[%clk 0:02:59.5]} 3. Nc3 {[%clk 0:02:33.3]} 3... Nf6 {[%clk 0:02:59.6]}
4. e5 {[%clk 0:02:32.8]} 4... Nfd7 {[%clk 0:02:59.5]} 5. f4 {[%clk 0:02:32.9]}
5... c5 {[%clk 0:02:59.1]} 6. Nf3 {[%clk 0:02:33.4]} 6... Nc6 {[%clk 0:02:59.7]}
7. Be3 {[%clk 0:02:32.9]} 7... a6 {[%clk 0:03:00.3]} 8. Qd2 {[%clk 0:02:30.6]}
8... b5 {[%clk 0:03:00.7]} 9. g3 {[%clk 0:02:30.7]} 9... Qb6 {[%clk 0:02:59.7]}
10. Bg2 {[%clk 0:02:30.4]} 10... cxd4 {[%clk 0:02:58.2]} 11. Nxd4 {[%clk
0:02:27.4]} 11... Bc5 {[%clk 0:02:58.8]} 12. Nce2 {[%clk 0:02:24.4]} 12... Bb7
{[%clk 0:02:49.8]} 13. O-O {[%clk 0:02:22.7]} 13... f6 {[%clk 0:02:44.7]} 14.
exf6 {[%clk 0:02:12.8]} 14... Nxf6 {[%clk 0:02:45.6]} 15. Kh1 {[%clk 0:02:12.2]}
15... h5 {[%clk 0:02:24.3]} 16. h3 {[%clk 0:02:06.4]} 16... h4 {[%clk
0:01:41.1]} 17. g4 {[%clk 0:02:03.6]} 17... e5 {[%clk 0:01:41.3]} 18. fxe5
{[%clk 0:01:53.2]} 18... Nxe5 {[%clk 0:01:41]} 19. b4 {[%clk 0:01:47.2]} 19...
Bf8 {[%clk 0:01:20.8]} 20. Nf5 {[%clk 0:01:40.1]} 20... Nc4 {[%clk 0:01:17.2]}
21. Qd3 {[%clk 0:01:30.1]} 21... Nxe3 {[%clk 0:01:15]} 22. Nxe3 {[%clk 0:01:31]}
22... O-O-O {[%clk 0:01:03.9]} 23. a4 {[%clk 0:01:05.9]} 23... d4 {[%clk
0:00:58.4]} 24. Nf5 {[%clk 0:00:58.8]} 24... Bxg2+ {[%clk 0:00:51.5]} 25. Kxg2
{[%clk 0:00:57.3]} 25... Bxb4 {[%clk 0:00:43.7]} 26. axb5 {[%clk 0:00:53.7]}
26... a5 {[%clk 0:00:44]} 27. Nfxd4 {[%clk 0:00:34.7]} 27... Rhe8 {[%clk
0:00:37]} 28. c3 {[%clk 0:00:26.5]} 28... Bc5 {[%clk 0:00:33.7]} 29. Qf5+ {[%clk
0:00:25]} 29... Kb7 {[%clk 0:00:26.2]} 30. Qf3+ {[%clk 0:00:23.5]} 30... Kc7
{[%clk 0:00:14.7]} 31. Nf4 {[%clk 0:00:20.2]} 31... Bxd4 {[%clk 0:00:10.9]} 32.
cxd4 {[%clk 0:00:21.1]} 32... Rxd4 {[%clk 0:00:11.1]} 33. Rac1+ {[%clk
0:00:20.2]} 33... Kb8 {[%clk 0:00:11.6]} 34. Rc6 {[%clk 0:00:20.3]} 34... Qxb5
{[%clk 0:00:11.2]} 35. Rfc1 {[%clk 0:00:17.4]} 35... Rd2+ {[%clk 0:00:11.1]} 36.
Kh1 {[%clk 0:00:15.9]} 36... Ne4 {[%clk 0:00:10.7]} 37. Nd3 {[%clk 0:00:07.9]}
37... Ng3+ {[%clk 0:00:05.8]} 38. Kg1 {[%clk 0:00:07]} 38... Rxd3 {[%clk
0:00:05.4]} 39. Qf4+ {[%clk 0:00:06.3]} 39... Ka8 {[%clk 0:00:05.9]} 40. Rc8+
{[%clk 0:00:06]} 40... Rxc8 {[%clk 0:00:05.5]} 41. Rxc8+ {[%clk 0:00:06.9]}
41... Ka7 {[%clk 0:00:06]} 42. Qc7+ {[%clk 0:00:07]} 42... Qb7 {[%clk
0:00:05.7]} 43. Qxa5+ {[%clk 0:00:06.6]} 43... Qa6 {[%clk 0:00:05.9]} 44. Rc7+
{[%clk 0:00:07.1]} 44... Kb8 {[%clk 0:00:06.2]} 45. Qxa6 {[%clk 0:00:07.2]}
45... Rd1+ {[%clk 0:00:06.1]} 46. Kf2 {[%clk 0:00:07.1]} 46... Kxc7 {[%clk
0:00:04.3]} 47. Qa5+ {[%clk 0:00:07.6]} 47... Kc6 {[%clk 0:00:03.6]} 48. Qa4+
{[%clk 0:00:07.9]} 48... Kd6 {[%clk 0:00:04]} 49. Qxd1+ {[%clk 0:00:08.5]} 49...
Ke5 {[%clk 0:00:04.9]} 50. Qf3 {[%clk 0:00:08.7]} 50... g5 {[%clk 0:00:04.5]}
51. Kg2 {[%clk 0:00:09]} 51... Ke6 {[%clk 0:00:04]} 52. Qe3+ {[%clk 0:00:09.1]}
52... Kf6 {[%clk 0:00:04.3]} 53. Kf3 {[%clk 0:00:09.6]} 53... Kg6 {[%clk
0:00:03.9]} 54. Qe6+ {[%clk 0:00:09.3]} 54... Kg7 {[%clk 0:00:03.5]} 55. Ke3
{[%clk 0:00:09.1]} 55... Nh1 {[%clk 0:00:02.7]} 56. Qa6 {[%clk 0:00:08.3]} 56...
Ng3 {[%clk 0:00:03.6]} 57. Kd4 {[%clk 0:00:08.5]} 57... Ne2+ {[%clk 0:00:02.9]}
58. Ke5 {[%clk 0:00:08.6]} 58... Nf4 {[%clk 0:00:03.8]} 59. Qf6+ {[%clk
0:00:07.7]} 59... Kh7 {[%clk 0:00:03.5]} 60. Qxg5 {[%clk 0:00:05.6]} 60... Nd3+
{[%clk 0:00:03]} 61. Kf6 {[%clk 0:00:05.3]} 61... Nf4 {[%clk 0:00:02.9]} 62.
Qg7# {[%clk 0:00:05.1]} 1-0

[Event "*** SCC Grand Prix: Titled Tuesday Blitz"]
[Site "Chess.com"]
[Date "2020.08.11"]
[Round "6"]
[White "Chessdemon2019"]
[Black "zmarian"]
[Result "1-0"]
[WhiteElo "2351"]
[BlackElo "2191"]
[TimeControl "180+1"]
[EndTime "11:08:23 PDT"]
[Termination "Chessdemon2019 won by resignation"]

1. e4 {[%clk 0:03:00.9]} 1... g6 {[%clk 0:02:59.1]} 2. d4 {[%clk 0:03:00.7]}
2... Bg7 {[%clk 0:02:58.8]} 3. Nc3 {[%clk 0:03:00]} 3... c5 {[%clk 0:02:58.7]}
4. d5 {[%clk 0:02:57.6]} 4... d6 {[%clk 0:02:57.5]} 5. Nf3 {[%clk 0:02:55.7]}
5... Nf6 {[%clk 0:02:57.1]} 6. Bb5+ {[%clk 0:02:53.6]} 6... Bd7 {[%clk
0:02:55.1]} 7. Bxd7+ {[%clk 0:02:52.2]} 7... Nfxd7 {[%clk 0:02:53.3]} 8. O-O
{[%clk 0:02:51.3]} 8... Na6 {[%clk 0:02:53]} 9. Bf4 {[%clk 0:02:44.6]} 9... O-O
{[%clk 0:02:51.3]} 10. Qe2 {[%clk 0:02:41]} 10... Nc7 {[%clk 0:02:50.5]} 11. e5
{[%clk 0:02:40.7]} 11... dxe5 {[%clk 0:02:50]} 12. Nxe5 {[%clk 0:02:40.8]} 12...
Nxe5 {[%clk 0:02:49.8]} 13. Bxe5 {[%clk 0:02:41.1]} 13... Bxe5 {[%clk
0:02:49.9]} 14. Qxe5 {[%clk 0:02:41]} 14... Qd6 {[%clk 0:02:45.9]} 15. Qg5
{[%clk 0:02:34.3]} 15... Kg7 {[%clk 0:02:38]} 16. Rad1 {[%clk 0:02:31.4]} 16...
h6 {[%clk 0:02:34.1]} 17. Qe3 {[%clk 0:02:28.2]} 17... b6 {[%clk 0:02:27.5]} 18.
Ne4 {[%clk 0:02:22.9]} 18... Qe5 {[%clk 0:02:24.4]} 19. c4 {[%clk 0:02:19.7]}
19... f5 {[%clk 0:02:19.9]} 20. Nc3 {[%clk 0:02:12.8]} 20... Qxe3 {[%clk
0:02:18.4]} 21. fxe3 {[%clk 0:02:13.1]} 21... Ne8 {[%clk 0:02:12.9]} 22. e4
{[%clk 0:02:11.7]} 22... fxe4 {[%clk 0:02:09]} 23. Rxf8 {[%clk 0:02:10.7]} 23...
Kxf8 {[%clk 0:02:06.9]} 24. Nxe4 {[%clk 0:02:10.8]} 24... Nd6 {[%clk 0:02:06.7]}
25. Nd2 {[%clk 0:01:50.6]} 25... Re8 {[%clk 0:01:59.3]} 26. Re1 {[%clk
0:01:50.1]} 26... Nf5 {[%clk 0:01:54.1]} 27. Nf3 {[%clk 0:01:43.3]} 27... Nd6
{[%clk 0:01:48]} 28. b3 {[%clk 0:01:41.9]} 28... Kg7 {[%clk 0:01:40.7]} 29. Re6
{[%clk 0:01:38.9]} 29... Nf7 {[%clk 0:01:25.7]} 30. Kf2 {[%clk 0:01:33]} 30...
g5 {[%clk 0:01:23.7]} 31. g4 {[%clk 0:01:27.2]} 31... Nd8 {[%clk 0:01:22.7]} 32.
Re3 {[%clk 0:01:24.1]} 32... Nf7 {[%clk 0:01:21.8]} 33. h4 {[%clk 0:01:22.8]}
33... Kf6 {[%clk 0:01:19.7]} 34. Re6+ {[%clk 0:01:20.6]} 34... Kg7 {[%clk
0:01:18.9]} 35. hxg5 {[%clk 0:01:19.9]} 35... hxg5 {[%clk 0:01:17]} 36. Ke3
{[%clk 0:01:15.4]} 36... Nd8 {[%clk 0:01:15]} 37. Re4 {[%clk 0:01:14.9]} 37...
Nf7 {[%clk 0:01:09.5]} 38. Ne5 {[%clk 0:01:10.9]} 38... Nd6 {[%clk 0:01:04.4]}
39. Nc6 {[%clk 0:01:03.6]} 39... Nxe4 {[%clk 0:01:04.1]} 40. Kxe4 {[%clk
0:01:04]} 40... Kf6 {[%clk 0:01:03.1]} 41. a4 {[%clk 0:00:58.6]} 41... a5 {[%clk
0:00:59.5]} 42. Ne5 {[%clk 0:00:58.2]} 42... Rh8 {[%clk 0:00:55.6]} 43. Nd7+
{[%clk 0:00:58]} 43... Kf7 {[%clk 0:00:54.9]} 44. Nxb6 {[%clk 0:00:56.7]} 44...
Rh3 {[%clk 0:00:54.5]} 45. Nd7 {[%clk 0:00:54.8]} 45... Rxb3 {[%clk 0:00:51.3]}
46. Nxc5 {[%clk 0:00:55]} 46... Rc3 {[%clk 0:00:48.7]} 47. Kd4 {[%clk
0:00:49.4]} 47... Rg3 {[%clk 0:00:48.5]} 48. Ne4 {[%clk 0:00:49.2]} 48... Rxg4
{[%clk 0:00:47.8]} 49. c5 {[%clk 0:00:49.7]} 49... Rg1 {[%clk 0:00:44.4]} 50. c6
{[%clk 0:00:49.4]} 50... Rd1+ {[%clk 0:00:37.3]} 51. Ke5 {[%clk 0:00:49]} 51...
g4 {[%clk 0:00:32.3]} 52. Kf4 {[%clk 0:00:40.2]} 52... Rd4 {[%clk 0:00:28.5]}
53. d6 {[%clk 0:00:28.8]} 53... exd6 {[%clk 0:00:25.3]} 54. c7 {[%clk 0:00:29]}
54... d5 {[%clk 0:00:16.3]} 55. c8=Q {[%clk 0:00:27.7]} 55... Rxe4+ {[%clk
0:00:16.4]} 56. Kg3 {[%clk 0:00:27.9]} 56... Kf6 {[%clk 0:00:14.5]} 57. Qc6+
{[%clk 0:00:27.6]} 57... Ke5 {[%clk 0:00:14.4]} 58. Qc3+ {[%clk 0:00:27.1]}
58... Kd6 {[%clk 0:00:13.1]} 59. Qxa5 {[%clk 0:00:26.4]} 59... Ke5 {[%clk
0:00:12.9]} 60. Qc7+ {[%clk 0:00:26.1]} 60... Kd4 {[%clk 0:00:12.6]} 61. a5
{[%clk 0:00:26.4]} 61... Kd3 {[%clk 0:00:10.5]} 62. a6 {[%clk 0:00:26.1]} 62...
d4 {[%clk 0:00:10.6]} 63. a7 {[%clk 0:00:25.8]} 63... Re3+ {[%clk 0:00:10.9]}
64. Kxg4 {[%clk 0:00:25.8]} 64... Re8 {[%clk 0:00:10.6]} 65. Qb7 {[%clk
0:00:24.2]} 65... Kd2 {[%clk 0:00:08.8]} 66. a8=Q {[%clk 0:00:23.1]} 66... Rxa8
{[%clk 0:00:09.1]} 67. Qxa8 {[%clk 0:00:24]} 67... d3 {[%clk 0:00:09.5]} 68.
Qa5+ {[%clk 0:00:24.2]} 68... Ke2 {[%clk 0:00:08.5]} 69. Qe5+ {[%clk 0:00:23.4]}
69... Kf2 {[%clk 0:00:07.9]} 70. Qd4+ {[%clk 0:00:22.8]} 70... Ke2 {[%clk
0:00:08]} 71. Qe4+ {[%clk 0:00:23]} 71... Kd2 {[%clk 0:00:07.7]} 72. Kf3 {[%clk
0:00:23.8]} 72... Kc3 {[%clk 0:00:06.1]} 73. Ke3 {[%clk 0:00:24]} 73... d2
{[%clk 0:00:06.2]} 74. Qd3+ {[%clk 0:00:24.4]} 74... Kb2 {[%clk 0:00:04.5]} 75.
Qxd2+ {[%clk 0:00:25.3]} 75... Ka1 {[%clk 0:00:05]} 76. Kd3 {[%clk 0:00:24.8]}
76... Kb1 {[%clk 0:00:05.1]} 77. Kc3 {[%clk 0:00:25.4]} 1-0

[Event "*** SCC Grand Prix: Titled Tuesday Blitz"]
[Site "Chess.com"]
[Date "2020.08.11"]
[Round "6"]
[White "M1711"]
[Black "Gorin_Leonid"]
[Result "1/2-1/2"]
[WhiteElo "2467"]
[BlackElo "2617"]
[TimeControl "180+1"]
[EndTime "11:08:27 PDT"]
[Termination "Game drawn by repetition"]

1. e4 {[%clk 0:03:00.9]} 1... e5 {[%clk 0:02:59.3]} 2. Nf3 {[%clk 0:03:01.2]}
2... Nc6 {[%clk 0:02:59.4]} 3. Bb5 {[%clk 0:02:59.6]} 3... a6 {[%clk 0:02:58.3]}
4. Bxc6 {[%clk 0:02:58.9]} 4... dxc6 {[%clk 0:02:57.7]} 5. Nc3 {[%clk
0:02:59.5]} 5... f6 {[%clk 0:02:57.4]} 6. d4 {[%clk 0:02:58]} 6... exd4 {[%clk
0:02:56.5]} 7. Nxd4 {[%clk 0:02:58.9]} 7... c5 {[%clk 0:02:56.4]} 8. Nde2 {[%clk
0:02:59.2]} 8... Qxd1+ {[%clk 0:02:56.9]} 9. Nxd1 {[%clk 0:03:00.1]} 9... Be6
{[%clk 0:02:56.3]} 10. Bf4 {[%clk 0:02:59.1]} 10... O-O-O {[%clk 0:02:54.7]} 11.
Ne3 {[%clk 0:02:59.1]} 11... Ne7 {[%clk 0:02:54.7]} 12. h4 {[%clk 0:02:58.7]}
12... f5 {[%clk 0:02:48.5]} 13. Nc3 {[%clk 0:02:23.7]} 13... fxe4 {[%clk
0:02:39.7]} 14. Nxe4 {[%clk 0:02:24.6]} 14... Nd5 {[%clk 0:02:39.2]} 15. Bg5
{[%clk 0:02:21.3]} 15... Nxe3 {[%clk 0:02:35.5]} 16. Bxe3 {[%clk 0:02:17.9]}
16... Bd5 {[%clk 0:02:33.5]} 17. Nxc5 {[%clk 0:01:53]} 17... Bxg2 {[%clk
0:02:31.3]} 18. Rg1 {[%clk 0:01:53.6]} 18... Bd5 {[%clk 0:02:26]} 19. O-O-O
{[%clk 0:01:49.4]} 19... g6 {[%clk 0:02:15.7]} 20. h5 {[%clk 0:01:17.6]} 20...
gxh5 {[%clk 0:02:06.5]} 21. Rg5 {[%clk 0:01:04.7]} 21... Bxc5 {[%clk 0:01:58.6]}
22. Rdxd5 {[%clk 0:00:37]} 22... Bxe3+ {[%clk 0:01:54.4]} 23. fxe3 {[%clk
0:00:37.9]} 23... Rde8 {[%clk 0:01:45.1]} 24. Rg7 {[%clk 0:00:27.1]} 24... Rd8
{[%clk 0:01:28.6]} 25. Rxh5 {[%clk 0:00:21.7]} 25... Rd7 {[%clk 0:01:25.4]} 26.
Rg3 {[%clk 0:00:14.8]} 26... Rf8 {[%clk 0:01:22.8]} 27. b3 {[%clk 0:00:12.1]}
27... b6 {[%clk 0:01:18.4]} 28. a4 {[%clk 0:00:11.2]} 28... Rf2 {[%clk
0:01:17.4]} 29. Rg4 {[%clk 0:00:07.4]} 29... Rdd2 {[%clk 0:01:14.5]} 30. Rc4
{[%clk 0:00:06.8]} 30... Rh2 {[%clk 0:01:14.1]} 31. Re5 {[%clk 0:00:06.5]} 31...
Rd7 {[%clk 0:01:13.5]} 32. Re8+ {[%clk 0:00:06.4]} 32... Kb7 {[%clk 0:01:13.4]}
33. Rh8 {[%clk 0:00:06.6]} 33... a5 {[%clk 0:01:13]} 34. e4 {[%clk 0:00:05.4]}
34... Re7 {[%clk 0:01:12.5]} 35. Kb2 {[%clk 0:00:05.4]} 35... h5 {[%clk
0:01:10.4]} 36. Rh6 {[%clk 0:00:05.6]} 36... h4 {[%clk 0:01:09.6]} 37. e5 {[%clk
0:00:06.2]} 37... Rxe5 {[%clk 0:01:02.7]} 38. Rhxh4 {[%clk 0:00:05]} 38... Rhe2
{[%clk 0:01:00.7]} 39. Rhg4 {[%clk 0:00:04.5]} 39... c6 {[%clk 0:00:58.5]} 40.
Rg6 {[%clk 0:00:03.3]} 40... Re6 {[%clk 0:00:58.1]} 41. Rg7+ {[%clk 0:00:03.8]}
41... Ka6 {[%clk 0:00:56.6]} 42. Rgg4 {[%clk 0:00:03.6]} 42... b5 {[%clk
0:00:55.6]} 43. axb5+ {[%clk 0:00:03]} 43... cxb5 {[%clk 0:00:55.7]} 44. Rc5
{[%clk 0:00:03.7]} 44... Rb6 {[%clk 0:00:53.1]} 45. Rg8 {[%clk 0:00:03.4]} 45...
Re7 {[%clk 0:00:52.7]} 46. Ra8+ {[%clk 0:00:03.4]} 46... Ra7 {[%clk 0:00:52.3]}
47. Rac8 {[%clk 0:00:03.5]} 47... Rab7 {[%clk 0:00:49.7]} 48. Ra8+ {[%clk
0:00:03.6]} 48... Ra7 {[%clk 0:00:49.5]} 49. Rh8 {[%clk 0:00:04.3]} 49... a4
{[%clk 0:00:47.8]} 50. bxa4 {[%clk 0:00:02.7]} 50... bxa4+ {[%clk 0:00:46.8]}
51. Ka3 {[%clk 0:00:03.4]} 51... Rab7 {[%clk 0:00:44.2]} 52. Rhh5 {[%clk
0:00:02.4]} 52... Rb1 {[%clk 0:00:43]} 53. Ra5+ {[%clk 0:00:02.4]} 53... Kb6
{[%clk 0:00:42.8]} 54. Ka2 {[%clk 0:00:02.3]} 54... Rb4 {[%clk 0:00:41.2]} 55.
Ka3 {[%clk 0:00:02.5]} 55... Rf4 {[%clk 0:00:39.8]} 56. Rab5+ {[%clk 0:00:02.1]}
56... Ka6 {[%clk 0:00:39.3]} 57. Ra5+ {[%clk 0:00:02.5]} 57... Kb6 {[%clk
0:00:39.1]} 58. Rhb5+ {[%clk 0:00:03.1]} 58... Kc6 {[%clk 0:00:39]} 59. Rxb7
{[%clk 0:00:03.4]} 59... Kxb7 {[%clk 0:00:38.8]} 60. Rxa4 {[%clk 0:00:04.1]}
60... Rf3+ {[%clk 0:00:38.1]} 61. Kb4 {[%clk 0:00:03.8]} 61... Kc6 {[%clk
0:00:37.9]} 62. Ra6+ {[%clk 0:00:03.6]} 62... Kc7 {[%clk 0:00:37.4]} 63. c4
{[%clk 0:00:03]} 63... Rf5 {[%clk 0:00:37.1]} 64. Rh6 {[%clk 0:00:02.7]} 64...
Rg5 {[%clk 0:00:36.5]} 65. Rf6 {[%clk 0:00:02.4]} 65... Rh5 {[%clk 0:00:35.8]}
66. Re6 {[%clk 0:00:02.8]} 66... Rg5 {[%clk 0:00:35.6]} 67. Re2 {[%clk 0:00:02]}
67... Rh5 {[%clk 0:00:35.4]} 68. Rd2 {[%clk 0:00:02.6]} 68... Kc6 {[%clk
0:00:34.8]} 69. Rg2 {[%clk 0:00:02.7]} 69... Rf5 {[%clk 0:00:34.1]} 70. Rg6+
{[%clk 0:00:03.1]} 70... Kc7 {[%clk 0:00:33.5]} 71. Ra6 {[%clk 0:00:03.6]} 71...
Rh5 {[%clk 0:00:32.5]} 72. c5 {[%clk 0:00:03.5]} 72... Rh1 {[%clk 0:00:31.3]}
73. Kc4 {[%clk 0:00:03.5]} 73... Rc1+ {[%clk 0:00:29.9]} 74. Kb5 {[%clk
0:00:04.2]} 74... Rb1+ {[%clk 0:00:29.7]} 75. Kc4 {[%clk 0:00:04.8]} 75... Rc1+
{[%clk 0:00:29.7]} 76. Kb5 {[%clk 0:00:05]} 76... Rb1+ {[%clk 0:00:29.7]} 77.
Kc4 {[%clk 0:00:05.5]} 77... Rc1+ {[%clk 0:00:29.7]} 1/2-1/2